[Event "Titled Tuesday Blitz August 09 Early 2022"]
[White "Melikyan, Gnel"]
[Black "Ginzburg, Yakov"]
[WhiteFideId "54109990"]
[BlackFideId "4157176"]
[WhiteElo "1772"]
[BlackElo "2265"]
[Result "1-0"]
[Round "11"]
[TimeControl "180+1"]
[Date "2022.08.09"]
[WhiteClock "0:01:17"]
[BlackClock "0:00:01"]

1. e4 {[%clk 0:03:00]}  c5 {[%clk 0:02:59]} 2. Nf3 {[%clk 0:03:01]}  e6 {[%clk 0:02:58]} 3. d4 {[%clk 0:03:01]}  cxd4 {[%clk 0:02:58]} 4. Nxd4 {[%clk 0:03:02]}  Nf6 {[%clk 0:02:58]} 5. Nc3 {[%clk 0:03:02]}  Nc6 {[%clk 0:02:58]} 6. Nxc6 {[%clk 0:03:03]}  bxc6 {[%clk 0:02:57]} 7. Bd3 {[%clk 0:03:03]}  d5 {[%clk 0:02:55]} 8. O-O {[%clk 0:03:04]}  Bc5 {[%clk 0:02:54]} 9. Qe2 {[%clk 0:03:02]}  O-O {[%clk 0:02:52]} 10. Na4 {[%clk 0:03:00]}  Be7 {[%clk 0:02:48]} 11. c4 {[%clk 0:03:00]}  e5 {[%clk 0:02:29]} 12. cxd5 {[%clk 0:02:52]}  cxd5 {[%clk 0:02:29]} 13. exd5 {[%clk 0:02:53]}  Qxd5 {[%clk 0:02:28]} 14. Nc3 {[%clk 0:02:52]}  Qc6 {[%clk 0:02:24]} 15. Bg5 {[%clk 0:02:42]}  Bb7 {[%clk 0:02:22]} 16. f3 {[%clk 0:02:40]}  Rfe8 {[%clk 0:02:07]} 17. Bxf6 {[%clk 0:02:38]}  Bxf6 {[%clk 0:02:05]} 18. Be4 {[%clk 0:02:37]}  Qb6+ {[%clk 0:01:52]} 19. Qf2 {[%clk 0:02:37]}  Ba6 {[%clk 0:01:50]} 20. Qxb6 {[%clk 0:02:35]}  axb6 {[%clk 0:01:49]} 21. Bxa8 {[%clk 0:02:35]}  Bxf1 {[%clk 0:01:48]} 22. Kxf1 {[%clk 0:02:22]}  Rxa8 {[%clk 0:01:47]} 23. Rd1 {[%clk 0:02:17]}  e4 {[%clk 0:01:32]} 24. fxe4 {[%clk 0:02:12]}  Bxc3 {[%clk 0:01:31]} 25. bxc3 {[%clk 0:02:12]}  Kf8 {[%clk 0:01:31]} 26. Rd2 {[%clk 0:02:11]}  Ra3 {[%clk 0:01:29]} 27. Rc2 {[%clk 0:02:08]}  Ke7 {[%clk 0:01:26]} 28. Ke2 {[%clk 0:02:08]}  Kd6 {[%clk 0:01:25]} 29. Kd3 {[%clk 0:02:07]}  Kc5 {[%clk 0:01:21]} 30. Rf2 {[%clk 0:02:07]}  f6 {[%clk 0:01:20]} 31. g4 {[%clk 0:02:04]}  Ra8 {[%clk 0:01:18]} 32. Rf5+ {[%clk 0:02:03]}  Kc6 {[%clk 0:01:17]} 33. Rf2 {[%clk 0:02:03]}  Ra4 {[%clk 0:01:15]} 34. h4 {[%clk 0:02:02]}  Ra5 {[%clk 0:01:12]} 35. Rf5 {[%clk 0:01:56]}  Rxa2 {[%clk 0:01:11]} 36. g5 {[%clk 0:01:56]}  fxg5 {[%clk 0:01:10]} 37. Rxg5 {[%clk 0:01:56]}  g6 {[%clk 0:01:07]} 38. h5 {[%clk 0:01:56]}  Ra5 {[%clk 0:01:05]} 39. e5 {[%clk 0:01:49]}  Rd5+ {[%clk 0:00:44]} 40. Ke4 {[%clk 0:01:39]}  Rc5 {[%clk 0:00:44]} 41. hxg6 {[%clk 0:01:38]}  hxg6 {[%clk 0:00:25]} 42. Rxg6+ {[%clk 0:01:38]}  Kc7 {[%clk 0:00:25]} 43. Kd4 {[%clk 0:01:37]}  Ra5 {[%clk 0:00:23]} 44. c4 {[%clk 0:01:35]}  Ra1 {[%clk 0:00:22]} 45. Rg7+ {[%clk 0:01:35]}  Kc6 {[%clk 0:00:21]} 46. Rg6+ {[%clk 0:01:35]}  Kc7 {[%clk 0:00:21]} 47. Kc3 {[%clk 0:01:34]}  Rc1+ {[%clk 0:00:20]} 48. Kb4 {[%clk 0:01:34]}  Re1 {[%clk 0:00:20]} 49. e6 {[%clk 0:01:33]}  Kd6 {[%clk 0:00:19]} 50. e7+ {[%clk 0:01:22]}  Kxe7 {[%clk 0:00:19]} 51. Rxb6 {[%clk 0:01:23]}  Kd7 {[%clk 0:00:18]} 52. Kc5 {[%clk 0:01:23]}  Kc7 {[%clk 0:00:17]} 53. Rc6+ {[%clk 0:01:23]}  Kb7 {[%clk 0:00:17]} 54. Rh6 {[%clk 0:01:23]}  Kc7 {[%clk 0:00:15]} 55. Rh7+ {[%clk 0:01:23]}  Kc8 {[%clk 0:00:15]} 56. Kd6 {[%clk 0:01:24]}  Rg1 {[%clk 0:00:12]} 57. Rh6 {[%clk 0:01:22]}  Rg8 {[%clk 0:00:08]} 58. Kc6 {[%clk 0:01:20]}  Kb8 {[%clk 0:00:07]} 59. Kb6 {[%clk 0:01:19]}  Rc8 {[%clk 0:00:02]} 60. c5 {[%clk 0:01:18]}  Rg8 {[%clk 0:00:02]} 61. c6 {[%clk 0:01:18]}  Kc8 {[%clk 0:00:01]} 62. Rh7 {[%clk 0:01:17]} 1-0


[Site "https://www.chess.com"]

[Event "Titled Tuesday Blitz August 09 Early 2022"]
[White "Miszler, Levente"]
[Black "Orlov, Georgi"]
[WhiteFideId "763276"]
[BlackFideId "2011271"]
[WhiteElo "1966"]
[BlackElo "2576"]
[Result "0-1"]
[Round "11"]
[TimeControl "180+1"]
[Date "2022.08.09"]
[WhiteClock "0:01:30"]
[BlackClock "0:00:48"]

1. Nf3 {[%clk 0:03:00]}  Nf6 {[%clk 0:02:58]} 2. c4 {[%clk 0:03:00]}  e6 {[%clk 0:02:57]} 3. g3 {[%clk 0:03:01]}  d5 {[%clk 0:02:54]} 4. Bg2 {[%clk 0:03:01]}  Be7 {[%clk 0:02:54]} 5. O-O {[%clk 0:03:02]}  O-O {[%clk 0:02:54]} 6. b3 {[%clk 0:03:01]}  c5 {[%clk 0:02:53]} 7. Bb2 {[%clk 0:03:01]}  Nc6 {[%clk 0:02:53]} 8. e3 {[%clk 0:03:01]}  d4 {[%clk 0:02:51]} 9. exd4 {[%clk 0:03:01]}  cxd4 {[%clk 0:02:52]} 10. Re1 {[%clk 0:03:01]}  a5 {[%clk 0:02:51]} 11. a3 {[%clk 0:03:00]}  Bc5 {[%clk 0:02:44]} 12. d3 {[%clk 0:03:00]}  Re8 {[%clk 0:02:36]} 13. Ne5 {[%clk 0:02:52]}  Nxe5 {[%clk 0:02:36]} 14. Rxe5 {[%clk 0:02:52]}  Qc7 {[%clk 0:02:34]} 15. Re1 {[%clk 0:02:49]}  e5 {[%clk 0:02:32]} 16. Nd2 {[%clk 0:02:50]}  Bf5 {[%clk 0:02:29]} 17. Ne4 {[%clk 0:02:49]}  Nxe4 {[%clk 0:02:27]} 18. Bxe4 {[%clk 0:02:50]}  Bxe4 {[%clk 0:02:26]} 19. Rxe4 {[%clk 0:02:50]}  f5 {[%clk 0:02:26]} 20. Re1 {[%clk 0:02:50]}  Rad8 {[%clk 0:02:18]} 21. Qf3 {[%clk 0:02:43]}  Qf7 {[%clk 0:02:15]} 22. Rab1 {[%clk 0:02:36]}  e4 {[%clk 0:02:13]} 23. dxe4 {[%clk 0:02:29]}  fxe4 {[%clk 0:02:13]} 24. Qxf7+ {[%clk 0:02:30]}  Kxf7 {[%clk 0:02:12]} 25. Rbd1 {[%clk 0:02:31]}  e3 {[%clk 0:02:01]} 26. fxe3 {[%clk 0:02:29]}  dxe3 {[%clk 0:01:59]} 27. Rxd8 {[%clk 0:02:27]}  Rxd8 {[%clk 0:01:58]} 28. Bc3 {[%clk 0:02:25]}  Rd3 {[%clk 0:01:55]} 29. b4 {[%clk 0:02:21]}  Ba7 {[%clk 0:01:47]} 30. Be5 {[%clk 0:02:15]}  Rxa3 {[%clk 0:01:38]} 31. bxa5 {[%clk 0:02:08]}  Rxa5 {[%clk 0:01:37]} 32. Bf4 {[%clk 0:02:08]}  Ra3 {[%clk 0:01:35]} 33. Kg2 {[%clk 0:02:08]}  Rc3 {[%clk 0:01:33]} 34. Re2 {[%clk 0:02:05]}  Kg6 {[%clk 0:01:26]} 35. Kf3 {[%clk 0:02:04]}  Rxc4 {[%clk 0:01:26]} 36. Rb2 {[%clk 0:02:02]}  Bc5 {[%clk 0:01:08]} 37. Rxb7 {[%clk 0:01:59]}  Rc3 {[%clk 0:01:07]} 38. Rc7 {[%clk 0:01:57]}  h5 {[%clk 0:01:04]} 39. Bd6 {[%clk 0:01:47]}  e2+ {[%clk 0:00:51]} 40. Kxe2 {[%clk 0:01:47]}  Re3+ {[%clk 0:00:51]} 41. Kd2 {[%clk 0:01:33]}  Bxd6 {[%clk 0:00:51]} 42. Kxe3 {[%clk 0:01:34]}  Bxc7 {[%clk 0:00:51]} 43. Kf3 {[%clk 0:01:33]}  Kf5 {[%clk 0:00:48]} 44. h3 {[%clk 0:01:30]}  g6 {[%clk 0:00:48]} 0-1


[Site "https://www.chess.com"]

[Event "Titled Tuesday Blitz August 09 Early 2022"]
[White "Navarrete Mendez, Gonzalo Alberto"]
[Black "Zaichenko, Daria"]
[WhiteFideId "5106850"]
[BlackFideId "4197453"]
[WhiteElo "2261"]
[BlackElo "2039"]
[Result "1-0"]
[Round "11"]
[TimeControl "180+1"]
[Date "2022.08.09"]
[WhiteClock "0:00:10"]
[BlackClock "0:00:07"]

1. e4 {[%clk 0:02:58]}  c5 {[%clk 0:02:53]} 2. Nf3 {[%clk 0:02:58]}  Nc6 {[%clk 0:02:53]} 3. Nc3 {[%clk 0:02:57]}  d6 {[%clk 0:02:49]} 4. d4 {[%clk 0:02:57]}  cxd4 {[%clk 0:02:49]} 5. Nxd4 {[%clk 0:02:58]}  e5 {[%clk 0:02:49]} 6. Nf5 {[%clk 0:02:57]}  g6 {[%clk 0:02:44]} 7. Ne3 {[%clk 0:02:56]}  Bg7 {[%clk 0:02:44]} 8. Nc4 {[%clk 0:02:49]}  Nd4 {[%clk 0:02:41]} 9. Be3 {[%clk 0:02:39]}  Be6 {[%clk 0:02:39]} 10. Nd5 {[%clk 0:02:37]}  Bxd5 {[%clk 0:02:38]} 11. exd5 {[%clk 0:02:37]}  Nf5 {[%clk 0:02:36]} 12. c3 {[%clk 0:02:32]}  a6 {[%clk 0:02:28]} 13. Bb6 {[%clk 0:02:15]}  Qd7 {[%clk 0:02:28]} 14. Bd3 {[%clk 0:02:11]}  Nge7 {[%clk 0:02:25]} 15. f3 {[%clk 0:02:06]}  O-O {[%clk 0:02:23]} 16. Bf2 {[%clk 0:02:06]}  Qc7 {[%clk 0:02:05]} 17. Bb6 {[%clk 0:02:00]}  Qd7 {[%clk 0:02:01]} 18. Bf2 {[%clk 0:02:00]}  Qc7 {[%clk 0:02:01]} 19. g4 {[%clk 0:01:58]}  Nh6 {[%clk 0:01:57]} 20. h4 {[%clk 0:01:33]}  f5 {[%clk 0:01:51]} 21. g5 {[%clk 0:01:30]}  Nf7 {[%clk 0:01:50]} 22. Bb6 {[%clk 0:01:17]}  Qd7 {[%clk 0:01:47]} 23. Ne3 {[%clk 0:01:12]}  f4 {[%clk 0:01:46]} 24. Ng4 {[%clk 0:01:06]}  Nxd5 {[%clk 0:01:43]} 25. Bf2 {[%clk 0:01:04]}  Ne7 {[%clk 0:01:35]} 26. h5 {[%clk 0:01:00]}  Nxg5 {[%clk 0:01:29]} 27. hxg6 {[%clk 0:01:00]}  hxg6 {[%clk 0:01:26]} 28. Bh4 {[%clk 0:00:59]}  Nh7 {[%clk 0:01:07]} 29. Bxe7 {[%clk 0:00:52]}  Qxe7 {[%clk 0:01:07]} 30. Bxg6 {[%clk 0:00:52]}  Ng5 {[%clk 0:01:06]} 31. Qd5+ {[%clk 0:00:48]}  Qe6 {[%clk 0:00:58]} 32. Be4 {[%clk 0:00:20]}  Qxd5 {[%clk 0:00:51]} 33. Bxd5+ {[%clk 0:00:20]}  Nf7 {[%clk 0:00:51]} 34. O-O-O {[%clk 0:00:20]}  Rfd8 {[%clk 0:00:48]} 35. Rdg1 {[%clk 0:00:19]}  Kf8 {[%clk 0:00:48]} 36. Rh7 {[%clk 0:00:18]}  Ng5 {[%clk 0:00:47]} 37. Rh5 {[%clk 0:00:18]}  Nf7 {[%clk 0:00:41]} 38. Rh7 {[%clk 0:00:15]}  Ng5 {[%clk 0:00:41]} 39. Rh5 {[%clk 0:00:15]}  Nf7 {[%clk 0:00:41]} 40. Rf5 {[%clk 0:00:16]}  Rd7 {[%clk 0:00:40]} 41. Rh5 {[%clk 0:00:14]}  Rc8 {[%clk 0:00:33]} 42. Be6 {[%clk 0:00:13]}  Rdc7 {[%clk 0:00:32]} 43. Bxc8 {[%clk 0:00:13]}  Rxc8 {[%clk 0:00:33]} 44. Nf2 {[%clk 0:00:14]}  d5 {[%clk 0:00:30]} 45. Rh7 {[%clk 0:00:14]}  Bh6 {[%clk 0:00:27]} 46. Ng4 {[%clk 0:00:13]}  Bg5 {[%clk 0:00:24]} 47. Nxe5 {[%clk 0:00:12]}  Nxe5 {[%clk 0:00:20]} 48. Rxg5 {[%clk 0:00:12]}  Nxf3 {[%clk 0:00:19]} 49. Rf5+ {[%clk 0:00:11]}  Kg8 {[%clk 0:00:20]} 50. Rxb7 {[%clk 0:00:12]}  Ne1 {[%clk 0:00:17]} 51. Kd2 {[%clk 0:00:10]}  Re8 {[%clk 0:00:14]} 52. Rxf4 {[%clk 0:00:09]}  a5 {[%clk 0:00:13]} 53. Rf1 {[%clk 0:00:02]}  Ng2 {[%clk 0:00:09]} 54. Rg1 {[%clk 0:00:02]}  Kf8 {[%clk 0:00:08]} 55. Rxg2 {[%clk 0:00:02]}  Rd8 {[%clk 0:00:07]} 56. Rf2+ {[%clk 0:00:03]}  Kg8 {[%clk 0:00:07]} 57. Rff7 {[%clk 0:00:03]}  d4 {[%clk 0:00:07]} 58. Rg7+ {[%clk 0:00:04]}  Kf8 {[%clk 0:00:07]} 59. cxd4 {[%clk 0:00:04]}  Rxd4+ {[%clk 0:00:07]} 60. Ke3 {[%clk 0:00:05]}  Rd6 {[%clk 0:00:05]} 61. Rbf7+ {[%clk 0:00:06]}  Ke8 {[%clk 0:00:05]} 62. Ra7 {[%clk 0:00:06]}  Kf8 {[%clk 0:00:05]} 63. Rgb7 {[%clk 0:00:07]}  Re6+ {[%clk 0:00:05]} 64. Kd4 {[%clk 0:00:07]}  Re8 {[%clk 0:00:05]} 65. Rf7+ {[%clk 0:00:06]}  Kg8 {[%clk 0:00:05]} 66. Rg7+ {[%clk 0:00:06]}  Kh8 {[%clk 0:00:06]} 67. Rh7+ {[%clk 0:00:07]}  Kg8 {[%clk 0:00:06]} 68. Rag7+ {[%clk 0:00:07]}  Kf8 {[%clk 0:00:07]} 69. Rh8+ {[%clk 0:00:08]}  Kxg7 {[%clk 0:00:07]} 70. Rxe8 {[%clk 0:00:08]}  a4 {[%clk 0:00:07]} 71. Ra8 {[%clk 0:00:09]}  a3 {[%clk 0:00:07]} 72. Rxa3 {[%clk 0:00:10]} 1-0


[Site "https://www.chess.com"]

[Event "Titled Tuesday Blitz August 09 Early 2022"]
[White "Nemurov, Aleksandr"]
[Black "Thiel, Thomas"]
[WhiteFideId "4194187"]
[BlackFideId "4615964"]
[WhiteElo "2190"]
[BlackElo "2252"]
[Result "1-0"]
[Round "11"]
[TimeControl "180+1"]
[Date "2022.08.09"]
[WhiteClock "0:02:24"]
[BlackClock "0:01:12"]

1. b3 {[%clk 0:03:00]}  Nf6 {[%clk 0:02:56]} 2. Bb2 {[%clk 0:03:01]}  g6 {[%clk 0:02:56]} 3. Bxf6 {[%clk 0:02:59]}  exf6 {[%clk 0:02:55]} 4. c4 {[%clk 0:02:59]}  c6 {[%clk 0:02:51]} 5. g3 {[%clk 0:02:58]}  d5 {[%clk 0:02:51]} 6. cxd5 {[%clk 0:02:57]}  Qxd5 {[%clk 0:02:50]} 7. Nf3 {[%clk 0:02:57]}  Bd6 {[%clk 0:02:48]} 8. Nc3 {[%clk 0:02:56]}  Qh5 {[%clk 0:02:44]} 9. Bg2 {[%clk 0:02:56]}  Bh3 {[%clk 0:02:41]} 10. O-O {[%clk 0:02:56]}  O-O {[%clk 0:02:39]} 11. d4 {[%clk 0:02:55]}  Nd7 {[%clk 0:02:31]} 12. Qc2 {[%clk 0:02:52]}  f5 {[%clk 0:02:21]} 13. e3 {[%clk 0:02:51]}  Nf6 {[%clk 0:02:18]} 14. Rfd1 {[%clk 0:02:46]}  Rae8 {[%clk 0:02:11]} 15. d5 {[%clk 0:02:43]}  c5 {[%clk 0:02:09]} 16. Nb5 {[%clk 0:02:43]}  Be5 {[%clk 0:01:44]} 17. Rac1 {[%clk 0:02:36]}  b6 {[%clk 0:01:33]} 18. Nxa7 {[%clk 0:02:35]}  Bg4 {[%clk 0:01:28]} 19. Nxe5 {[%clk 0:02:32]}  Rxe5 {[%clk 0:01:16]} 20. d6 {[%clk 0:02:27]}  Bxd1 {[%clk 0:01:14]} 21. Rxd1 {[%clk 0:02:28]}  Ne4 {[%clk 0:01:12]} 22. d7 {[%clk 0:02:24]} 1-0


[Site "https://www.chess.com"]

[Event "Titled Tuesday Blitz August 09 Early 2022"]
[White "Niyazgulova, Marina"]
[Black "Nasir, Zehn"]
[WhiteFideId "24142573"]
[BlackFideId "2613239"]
[WhiteElo "1986"]
[BlackElo "1993"]
[Result "0-1"]
[Round "11"]
[TimeControl "180+1"]
[Date "2022.08.09"]
[WhiteClock "0:00:12"]
[BlackClock "0:00:13"]

1. d4 {[%clk 0:03:00]}  Nf6 {[%clk 0:02:51]} 2. c4 {[%clk 0:03:00]}  e5 {[%clk 0:02:34]} 3. dxe5 {[%clk 0:02:55]}  Ng4 {[%clk 0:02:27]} 4. Nf3 {[%clk 0:02:55]}  Bc5 {[%clk 0:02:25]} 5. e3 {[%clk 0:02:53]}  Nc6 {[%clk 0:02:22]} 6. Nc3 {[%clk 0:02:47]}  Ngxe5 {[%clk 0:02:20]} 7. Be2 {[%clk 0:02:43]}  O-O {[%clk 0:02:19]} 8. O-O {[%clk 0:02:43]}  Re8 {[%clk 0:02:15]} 9. b3 {[%clk 0:02:41]}  Nxf3+ {[%clk 0:02:13]} 10. Bxf3 {[%clk 0:02:41]}  Ne5 {[%clk 0:02:14]} 11. Be2 {[%clk 0:02:32]}  a5 {[%clk 0:02:13]} 12. Bb2 {[%clk 0:02:28]}  Ra6 {[%clk 0:02:12]} 13. Ne4 {[%clk 0:02:21]}  Bf8 {[%clk 0:02:04]} 14. Ng3 {[%clk 0:02:01]}  Rh6 {[%clk 0:01:54]} 15. Nf5 {[%clk 0:01:26]}  Rg6 {[%clk 0:01:44]} 16. f4 {[%clk 0:01:11]}  Nc6 {[%clk 0:01:39]} 17. Bh5 {[%clk 0:01:09]}  d6 {[%clk 0:01:29]} 18. Bxg6 {[%clk 0:01:07]}  hxg6 {[%clk 0:01:29]} 19. Nd4 {[%clk 0:01:06]}  Rxe3 {[%clk 0:01:28]} 20. Nxc6 {[%clk 0:01:06]}  bxc6 {[%clk 0:01:29]} 21. Qd2 {[%clk 0:01:04]}  Re8 {[%clk 0:01:24]} 22. Rae1 {[%clk 0:01:00]}  c5 {[%clk 0:01:22]} 23. Qxa5 {[%clk 0:00:59]}  Be6 {[%clk 0:01:16]} 24. h3 {[%clk 0:00:44]}  Qd7 {[%clk 0:01:15]} 25. Re2 {[%clk 0:00:41]}  Rb8 {[%clk 0:00:54]} 26. Rfe1 {[%clk 0:00:36]}  Qc8 {[%clk 0:00:54]} 27. Qc3 {[%clk 0:00:35]}  Ra8 {[%clk 0:00:52]} 28. Ba1 {[%clk 0:00:35]}  Qd7 {[%clk 0:00:51]} 29. Qf3 {[%clk 0:00:34]}  Rb8 {[%clk 0:00:50]} 30. g4 {[%clk 0:00:29]}  Rd8 {[%clk 0:00:48]} 31. Rf1 {[%clk 0:00:28]}  f6 {[%clk 0:00:42]} 32. Rfe1 {[%clk 0:00:25]}  Bf7 {[%clk 0:00:42]} 33. Kg2 {[%clk 0:00:20]}  Qc8 {[%clk 0:00:42]} 34. Qc6 {[%clk 0:00:18]}  Qb8 {[%clk 0:00:35]} 35. Rd2 {[%clk 0:00:16]}  Qc8 {[%clk 0:00:35]} 36. Ree2 {[%clk 0:00:16]}  Be8 {[%clk 0:00:33]} 37. Qf3 {[%clk 0:00:16]}  Bf7 {[%clk 0:00:33]} 38. Kh2 {[%clk 0:00:16]}  Qd7 {[%clk 0:00:34]} 39. Bc3 {[%clk 0:00:16]}  Rb8 {[%clk 0:00:33]} 40. f5 {[%clk 0:00:16]}  g5 {[%clk 0:00:32]} 41. Re3 {[%clk 0:00:15]}  Qd8 {[%clk 0:00:29]} 42. Qg3 {[%clk 0:00:15]}  Ra8 {[%clk 0:00:29]} 43. h4 {[%clk 0:00:15]}  gxh4 {[%clk 0:00:28]} 44. Qxh4 {[%clk 0:00:16]}  c6 {[%clk 0:00:26]} 45. Rh3 {[%clk 0:00:16]}  Be8 {[%clk 0:00:23]} 46. Qh8+ {[%clk 0:00:16]}  Kf7 {[%clk 0:00:23]} 47. Qh5+ {[%clk 0:00:17]}  Ke7 {[%clk 0:00:23]} 48. Re2+ {[%clk 0:00:15]}  Kd7 {[%clk 0:00:24]} 49. Qh4 {[%clk 0:00:16]}  Bf7 {[%clk 0:00:24]} 50. Qg3 {[%clk 0:00:15]}  Kc7 {[%clk 0:00:22]} 51. Rh8 {[%clk 0:00:15]}  Qd7 {[%clk 0:00:22]} 52. Qf3 {[%clk 0:00:15]}  Re8 {[%clk 0:00:21]} 53. Rxe8 {[%clk 0:00:15]}  Qxe8 {[%clk 0:00:22]} 54. Kg2 {[%clk 0:00:15]}  Qe7 {[%clk 0:00:20]} 55. Qf2 {[%clk 0:00:14]}  d5 {[%clk 0:00:20]} 56. Qe1 {[%clk 0:00:15]}  Qxe1 {[%clk 0:00:17]} 57. Bxe1 {[%clk 0:00:15]}  Bd6 {[%clk 0:00:17]} 58. Rh7 {[%clk 0:00:15]}  Bf8 {[%clk 0:00:17]} 59. cxd5 {[%clk 0:00:15]}  cxd5 {[%clk 0:00:17]} 60. Bf2 {[%clk 0:00:15]}  Kd7 {[%clk 0:00:17]} 61. Rh8 {[%clk 0:00:15]}  Ke8 {[%clk 0:00:17]} 62. Kf3 {[%clk 0:00:16]}  d4 {[%clk 0:00:17]} 63. Bg3 {[%clk 0:00:15]}  Bd5+ {[%clk 0:00:17]} 64. Ke2 {[%clk 0:00:15]}  Kf7 {[%clk 0:00:17]} 65. Kd3 {[%clk 0:00:15]}  Bf3 {[%clk 0:00:15]} 66. Rh4 {[%clk 0:00:14]}  Bg2 {[%clk 0:00:15]} 67. Bf4 {[%clk 0:00:14]}  Bf1+ {[%clk 0:00:15]} 68. Kd2 {[%clk 0:00:14]}  Bb5 {[%clk 0:00:15]} 69. a4 {[%clk 0:00:13]}  Bc6 {[%clk 0:00:15]} 70. a5 {[%clk 0:00:14]}  Bb5 {[%clk 0:00:15]} 71. Rh1 {[%clk 0:00:13]}  Be7 {[%clk 0:00:15]} 72. Ra1 {[%clk 0:00:13]}  Ba6 {[%clk 0:00:15]} 73. Bc7 {[%clk 0:00:13]}  Ke8 {[%clk 0:00:15]} 74. Bb6 {[%clk 0:00:13]}  Kd7 {[%clk 0:00:15]} 75. Rc1 {[%clk 0:00:14]}  Kc6 {[%clk 0:00:14]} 76. Ba7 {[%clk 0:00:12]}  Bd6 {[%clk 0:00:14]} 77. Bb6 {[%clk 0:00:12]}  Bf4+ {[%clk 0:00:14]} 78. Kd1 {[%clk 0:00:12]}  Bxc1 {[%clk 0:00:14]} 79. Kxc1 {[%clk 0:00:12]}  Kb5 {[%clk 0:00:14]} 80. Kd2 {[%clk 0:00:13]}  Kc6 {[%clk 0:00:14]} 81. Kc2 {[%clk 0:00:13]}  Be2 {[%clk 0:00:15]} 82. Bd8 {[%clk 0:00:12]}  Bxg4 {[%clk 0:00:15]} 83. Be7 {[%clk 0:00:13]}  Bxf5+ {[%clk 0:00:15]} 84. Kd2 {[%clk 0:00:13]}  Bc8 {[%clk 0:00:15]} 85. Bf8 {[%clk 0:00:13]}  g6 {[%clk 0:00:15]} 86. Bg7 {[%clk 0:00:13]}  f5 {[%clk 0:00:15]} 87. Bh6 {[%clk 0:00:14]}  Ba6 {[%clk 0:00:16]} 88. Kc2 {[%clk 0:00:14]}  Kd5 {[%clk 0:00:17]} 89. Kd2 {[%clk 0:00:12]}  Ke4 {[%clk 0:00:17]} 90. Ke1 {[%clk 0:00:12]}  f4 {[%clk 0:00:17]} 91. Bf8 {[%clk 0:00:12]}  c4 {[%clk 0:00:16]} 92. bxc4 {[%clk 0:00:12]}  Bxc4 {[%clk 0:00:17]} 93. Bb4 {[%clk 0:00:12]}  g5 {[%clk 0:00:17]} 94. Kf2 {[%clk 0:00:12]}  g4 {[%clk 0:00:17]} 95. Bd2 {[%clk 0:00:12]}  g3+ {[%clk 0:00:17]} 96. Kg2 {[%clk 0:00:13]}  Ba6 {[%clk 0:00:16]} 97. Bc1 {[%clk 0:00:13]}  Kf5 {[%clk 0:00:15]} 98. Kf3 {[%clk 0:00:11]}  Bb7+ {[%clk 0:00:15]} 99. Ke2 {[%clk 0:00:12]}  f3+ {[%clk 0:00:14]} 100. Kf1 {[%clk 0:00:12]}  Kg4 {[%clk 0:00:13]} 101. Kg1 {[%clk 0:00:12]}  f2+ {[%clk 0:00:12]} 102. Kf1 {[%clk 0:00:12]}  Ba6+ {[%clk 0:00:13]} 103. Kg2 {[%clk 0:00:12]}  f1=Q# {[%clk 0:00:13]} 0-1


[Site "https://www.chess.com"]

[Event "Titled Tuesday Blitz August 09 Early 2022"]
[White "Omariev, Maksim"]
[Black "Kuznetsova, Olga"]
[WhiteFideId "4193423"]
[BlackFideId "4191323"]
[WhiteElo "2508"]
[BlackElo "2134"]
[Result "0-1"]
[Round "11"]
[TimeControl "180+1"]
[Date "2022.08.09"]
[WhiteClock "0:00:01"]
[BlackClock "0:00:13"]

1. g4 {[%clk 0:03:00]}  d5 {[%clk 0:02:56]} 2. Bg2 {[%clk 0:03:01]}  c6 {[%clk 0:02:57]} 3. c4 {[%clk 0:03:00]}  dxc4 {[%clk 0:02:56]} 4. h3 {[%clk 0:02:56]}  Nf6 {[%clk 0:02:56]} 5. Na3 {[%clk 0:02:55]}  Nbd7 {[%clk 0:02:52]} 6. Nxc4 {[%clk 0:02:55]}  Nb6 {[%clk 0:02:52]} 7. Ne5 {[%clk 0:02:45]}  Nfd7 {[%clk 0:02:43]} 8. Ngf3 {[%clk 0:02:32]}  Nxe5 {[%clk 0:02:42]} 9. Nxe5 {[%clk 0:02:32]}  f6 {[%clk 0:02:39]} 10. Nf3 {[%clk 0:02:16]}  e5 {[%clk 0:02:38]} 11. d4 {[%clk 0:02:16]}  Bb4+ {[%clk 0:01:58]} 12. Bd2 {[%clk 0:02:16]}  Bxd2+ {[%clk 0:01:58]} 13. Qxd2 {[%clk 0:02:17]}  exd4 {[%clk 0:01:56]} 14. Nxd4 {[%clk 0:02:13]}  O-O {[%clk 0:01:55]} 15. O-O-O {[%clk 0:02:13]}  Qe7 {[%clk 0:01:53]} 16. Kb1 {[%clk 0:02:12]}  Rd8 {[%clk 0:01:40]} 17. Qc2 {[%clk 0:02:12]}  Be6 {[%clk 0:01:26]} 18. f4 {[%clk 0:02:04]}  Nd5 {[%clk 0:01:04]} 19. Qc1 {[%clk 0:01:59]}  Bf7 {[%clk 0:00:48]} 20. e4 {[%clk 0:01:56]}  Nb4 {[%clk 0:00:48]} 21. a3 {[%clk 0:01:56]}  Na6 {[%clk 0:00:48]} 22. Rhe1 {[%clk 0:01:47]}  Qc5 {[%clk 0:00:45]} 23. Qe3 {[%clk 0:01:43]}  Re8 {[%clk 0:00:42]} 24. Rc1 {[%clk 0:01:37]}  Qb6 {[%clk 0:00:41]} 25. Qc3 {[%clk 0:01:29]}  Rad8 {[%clk 0:00:40]} 26. Red1 {[%clk 0:01:29]}  Nc7 {[%clk 0:00:37]} 27. h4 {[%clk 0:01:14]}  Nb5 {[%clk 0:00:36]} 28. Nxb5 {[%clk 0:01:14]}  Qxb5 {[%clk 0:00:37]} 29. g5 {[%clk 0:01:11]}  Qe2 {[%clk 0:00:35]} 30. Bf3 {[%clk 0:01:07]}  Qh2 {[%clk 0:00:28]} 31. gxf6 {[%clk 0:01:04]}  Qxf4 {[%clk 0:00:28]} 32. fxg7 {[%clk 0:01:01]}  Qxh4 {[%clk 0:00:28]} 33. Rh1 {[%clk 0:00:48]}  Qg5 {[%clk 0:00:17]} 34. Rcg1 {[%clk 0:00:37]}  Qe5 {[%clk 0:00:18]} 35. Qe3 {[%clk 0:00:16]}  Bg6 {[%clk 0:00:18]} 36. Rh4 {[%clk 0:00:11]}  Rd7 {[%clk 0:00:17]} 37. Rxg6 {[%clk 0:00:03]}  hxg6 {[%clk 0:00:17]} 38. Rh8+ {[%clk 0:00:03]}  Kxg7 {[%clk 0:00:16]} 39. Qh6+ {[%clk 0:00:02]}  Kf6 {[%clk 0:00:16]} 40. Qh4+ {[%clk 0:00:02]}  Kf7 {[%clk 0:00:12]} 41. Qh7+ {[%clk 0:00:01]}  Kf6 {[%clk 0:00:12]} 42. Qh4+ {[%clk 0:00:01]}  Kf7 {[%clk 0:00:13]} 43. Rh7+ {[%clk 0:00:01]}  Ke6 {[%clk 0:00:13]} 0-1


[Site "https://www.chess.com"]